[Event "*** Titled Tuesday 3|2 Blitz (Early)"]
[Site "Chess.com"]
[Date "2016.12.06"]
[Round "7"]
[White "stuffings101"]
[Black "poummba"]
[Result "1-0"]
[WhiteElo "2171"]
[BlackElo "2358"]
[TimeControl "180+2"]
[EndTime "12:24:16 PST"]
[Termination "stuffings101 won by checkmate"]

1. Nf3 {[%clk 0:03:01.9]} 1... Na6 {[%clk 0:03:02]} 2. g3 {[%clk 0:03:01.4]}
2... Nc5 {[%clk 0:03:03.9]} 3. Bg2 {[%clk 0:03:01.6]} 3... Ne6 {[%clk
0:03:05.8]} 4. d4 {[%clk 0:02:55.1]} 4... Nc5 {[%clk 0:03:07.7]} 5. dxc5 {[%clk
0:02:54.7]} 5... Nf6 {[%clk 0:03:09.2]} 6. a3 {[%clk 0:02:41.8]} 6... Ne4 {[%clk
0:03:11.1]} 7. b4 {[%clk 0:02:40.3]} 7... f6 {[%clk 0:03:13]} 8. Qd3 {[%clk
0:02:38.8]} 8... Kf7 {[%clk 0:03:14.9]} 9. Qxe4 {[%clk 0:02:38.7]} 9... Kg8
{[%clk 0:03:15.5]} 10. Bb2 {[%clk 0:02:37]} 10... e5 {[%clk 0:03:16.9]} 11. Qc4+
{[%clk 0:02:35.4]} 11... d5 {[%clk 0:03:15.9]} 12. cxd6+ {[%clk 0:02:36.1]}
12... Be6 {[%clk 0:03:17.4]} 13. Qxe6# {[%clk 0:02:35.7]} 1-0

[Event "*** Titled Tuesday 3|2 Blitz (Early)"]
[Site "Chess.com"]
[Date "2016.12.06"]
[Round "7"]
[White "nihalsarin"]
[Black "Izoria123"]
[Result "0-1"]
[WhiteElo "2506"]
[BlackElo "2584"]
[TimeControl "180+2"]
[EndTime "12:26:47 PST"]
[Termination "Izoria123 won by resignation"]

1. d4 {[%clk 0:03:02]} 1... Nf6 {[%clk 0:03:00.1]} 2. c4 {[%clk 0:03:01.8]} 2...
g6 {[%clk 0:03:00.8]} 3. Nc3 {[%clk 0:03:02.4]} 3... Bg7 {[%clk 0:03:01.8]} 4.
e4 {[%clk 0:03:03.5]} 4... d6 {[%clk 0:03:03.4]} 5. Be2 {[%clk 0:03:04.7]} 5...
O-O {[%clk 0:03:04.9]} 6. Nf3 {[%clk 0:03:06]} 6... c5 {[%clk 0:03:04.8]} 7. O-O
{[%clk 0:03:05.6]} 7... Re8 {[%clk 0:03:00.9]} 8. d5 {[%clk 0:02:55.4]} 8... e6
{[%clk 0:03:01.4]} 9. Re1 {[%clk 0:02:56]} 9... exd5 {[%clk 0:03:00.8]} 10. exd5
{[%clk 0:02:57.3]} 10... Ne4 {[%clk 0:03:01]} 11. Nxe4 {[%clk 0:02:55.1]} 11...
Rxe4 {[%clk 0:03:02.9]} 12. Bd3 {[%clk 0:02:57]} 12... Rxe1+ {[%clk 0:03:00.3]}
13. Nxe1 {[%clk 0:02:58.9]} 13... Nd7 {[%clk 0:03:00.5]} 14. Nf3 {[%clk
0:02:57.4]} 14... Ne5 {[%clk 0:03:01.2]} 15. Nxe5 {[%clk 0:02:57.8]} 15... Bxe5
{[%clk 0:03:03.1]} 16. Qc2 {[%clk 0:02:52.4]} 16... Qh4 {[%clk 0:03:03.4]} 17.
g3 {[%clk 0:02:53.1]} 17... Qf6 {[%clk 0:02:58]} 18. Rb1 {[%clk 0:02:29.5]}
18... Bh3 {[%clk 0:02:52]} 19. Bd2 {[%clk 0:02:26.3]} 19... Bd4 {[%clk
0:02:47.3]} 20. Bc3 {[%clk 0:02:22.7]} 20... Re8 {[%clk 0:02:31.6]} 21. Qd2
{[%clk 0:01:56.9]} 21... Qf3 {[%clk 0:02:17.3]} 22. Bf1 {[%clk 0:01:57.1]} 22...
Bxf1 {[%clk 0:02:17.4]} 23. Rxf1 {[%clk 0:01:58]} 23... Re2 {[%clk 0:02:17.2]}
0-1

[Event "*** Titled Tuesday 3|2 Blitz (Early)"]
[Site "Chess.com"]
[Date "2016.12.06"]
[Round "7"]
[White "Wilsonpalencia"]
[Black "VSERGUEI"]
[Result "0-1"]
[WhiteElo "2389"]
[BlackElo "2611"]
[TimeControl "180+2"]
[EndTime "12:28:36 PST"]
[Termination "VSERGUEI won by resignation"]

1. e4 {[%clk 0:03:00.7]} 1... e6 {[%clk 0:03:00.2]} 2. d4 {[%clk 0:03:01.4]}
2... d5 {[%clk 0:03:00.7]} 3. Nd2 {[%clk 0:03:02]} 3... Nf6 {[%clk 0:03:00.8]}
4. e5 {[%clk 0:03:03]} 4... Nfd7 {[%clk 0:03:01.7]} 5. c3 {[%clk 0:03:04]} 5...
c5 {[%clk 0:03:02.7]} 6. f4 {[%clk 0:03:04.6]} 6... Nc6 {[%clk 0:03:03]} 7. Ndf3
{[%clk 0:03:05.3]} 7... Qb6 {[%clk 0:03:02.5]} 8. g3 {[%clk 0:03:04.9]} 8... a5
{[%clk 0:03:00.6]} 9. Ne2 {[%clk 0:03:03.2]} 9... a4 {[%clk 0:03:00.4]} 10. Bg2
{[%clk 0:02:55.5]} 10... a3 {[%clk 0:02:59.7]} 11. b3 {[%clk 0:02:54.1]} 11...
cxd4 {[%clk 0:03:00.2]} 12. Nfxd4 {[%clk 0:02:51.8]} 12... Nxd4 {[%clk
0:02:54.8]} 13. Nxd4 {[%clk 0:02:49.6]} 13... Nb8 {[%clk 0:02:50.3]} 14. Be3
{[%clk 0:02:47.3]} 14... Nc6 {[%clk 0:02:50]} 15. b4 {[%clk 0:02:45.8]} 15...
Nxd4 {[%clk 0:02:42]} 16. Bxd4 {[%clk 0:02:38.7]} 16... Qb5 {[%clk 0:02:35.6]}
17. Bf1 {[%clk 0:02:34.6]} 17... Qc6 {[%clk 0:02:34.7]} 18. Bd3 {[%clk
0:02:33.6]} 18... Be7 {[%clk 0:02:23.9]} 19. O-O {[%clk 0:02:32.5]} 19... O-O
{[%clk 0:02:23.3]} 20. Qe2 {[%clk 0:02:33.6]} 20... Bd7 {[%clk 0:02:21.2]} 21.
g4 {[%clk 0:02:26.2]} 21... f6 {[%clk 0:02:05.8]} 22. Rae1 {[%clk 0:02:24.3]}
22... fxe5 {[%clk 0:02:01.6]} 23. Qxe5 {[%clk 0:02:23]} 23... Bf6 {[%clk
0:01:54.2]} 24. Qh5 {[%clk 0:02:19.2]} 24... Bxd4+ {[%clk 0:01:38.4]} 25. cxd4
{[%clk 0:02:19.4]} 25... h6 {[%clk 0:01:37.7]} 26. Qg6 {[%clk 0:02:18.3]} 0-1

[Event "*** Titled Tuesday 3|2 Blitz (Early)"]
[Site "Chess.com"]
[Date "2016.12.06"]
[Round "7"]
[White "platy3"]
[Black "Dlugy"]
[Result "0-1"]
[WhiteElo "2693"]
[BlackElo "2646"]
[TimeControl "180+2"]
[EndTime "12:28:55 PST"]
[Termination "Dlugy won by resignation"]

1. e4 {[%clk 0:03:02]} 1... c5 {[%clk 0:03:00.1]} 2. Nf3 {[%clk 0:03:02.4]} 2...
d6 {[%clk 0:03:00.9]} 3. d4 {[%clk 0:03:03]} 3... cxd4 {[%clk 0:03:01.6]} 4.
Nxd4 {[%clk 0:03:04.9]} 4... Nf6 {[%clk 0:03:03]} 5. Nc3 {[%clk 0:03:06.6]} 5...
Nc6 {[%clk 0:03:04.5]} 6. Bc4 {[%clk 0:03:07]} 6... e6 {[%clk 0:03:05.7]} 7. Bb3
{[%clk 0:03:07.3]} 7... Be7 {[%clk 0:03:07]} 8. Be3 {[%clk 0:03:08.6]} 8... O-O
{[%clk 0:03:08]} 9. Qe2 {[%clk 0:03:10]} 9... Qa5 {[%clk 0:03:07.5]} 10. O-O-O
{[%clk 0:03:09.5]} 10... Nxd4 {[%clk 0:03:07.5]} 11. Bxd4 {[%clk 0:03:07.9]}
11... Bd7 {[%clk 0:02:57.2]} 12. Rd3 {[%clk 0:02:52.1]} 12... Bc6 {[%clk
0:02:37]} 13. Rg3 {[%clk 0:02:35.1]} 13... Rac8 {[%clk 0:02:31.2]} 14. Qd2
{[%clk 0:02:24.1]} 14... Kh8 {[%clk 0:02:27.9]} 15. Kb1 {[%clk 0:02:14.6]} 15...
b5 {[%clk 0:02:24.5]} 16. Qg5 {[%clk 0:01:37.2]} 16... Rg8 {[%clk 0:02:25.2]}
17. f3 {[%clk 0:01:37.4]} 17... e5 {[%clk 0:02:19.6]} 18. Bf2 {[%clk 0:01:23.3]}
18... b4 {[%clk 0:02:20.3]} 19. Nd1 {[%clk 0:01:20.7]} 19... Ba4 {[%clk
0:02:14.2]} 20. Rh3 {[%clk 0:01:17.7]} 20... Bxb3 {[%clk 0:02:11]} 21. axb3
{[%clk 0:01:18.4]} 21... Rc6 {[%clk 0:02:06.8]} 22. Ne3 {[%clk 0:01:15.9]} 22...
Ra6 {[%clk 0:02:04.2]} 23. Kc1 {[%clk 0:01:11.9]} 23... Qa1+ {[%clk 0:02:05.2]}
24. Kd2 {[%clk 0:01:13.2]} 24... Qxh1 {[%clk 0:02:06.8]} 25. Ke2 {[%clk
0:00:53.7]} 25... h6 {[%clk 0:01:56.9]} 26. Nd5 {[%clk 0:00:43.2]} 26... Ra1
{[%clk 0:01:53.1]} 0-1

[Event "*** Titled Tuesday 3|2 Blitz (Early)"]
[Site "Chess.com"]
[Date "2016.12.06"]
[Round "7"]
[White "Keaton87"]
[Black "rubhani"]
[Result "0-1"]
[WhiteElo "2457"]
[BlackElo "2412"]
[TimeControl "180+2"]
[EndTime "12:29:00 PST"]
[Termination "rubhani won by resignation"]

1. e4 {[%clk 0:03:01.9]} 1... c6 {[%clk 0:03:01.4]} 2. c4 {[%clk 0:03:02.2]}
2... d5 {[%clk 0:03:02.6]} 3. cxd5 {[%clk 0:03:04.1]} 3... cxd5 {[%clk
0:03:04.5]} 4. exd5 {[%clk 0:03:06]} 4... Nf6 {[%clk 0:03:05.5]} 5. Qa4+ {[%clk
0:03:07.5]} 5... Nbd7 {[%clk 0:03:05.9]} 6. Nc3 {[%clk 0:03:09]} 6... g6 {[%clk
0:03:07.1]} 7. Bc4 {[%clk 0:03:08.9]} 7... Bg7 {[%clk 0:03:08.4]} 8. Nf3 {[%clk
0:03:09.3]} 8... O-O {[%clk 0:03:09.1]} 9. d3 {[%clk 0:03:10.7]} 9... a6 {[%clk
0:03:10.1]} 10. Qa3 {[%clk 0:03:11.7]} 10... Rb8 {[%clk 0:02:59.4]} 11. Bb3
{[%clk 0:02:57.7]} 11... b5 {[%clk 0:02:57.2]} 12. Ne4 {[%clk 0:02:31.3]} 12...
b4 {[%clk 0:02:30.9]} 13. Qa4 {[%clk 0:02:24.4]} 13... Rb5 {[%clk 0:02:15.5]}
14. Bc4 {[%clk 0:02:13.9]} 14... Nb6 {[%clk 0:01:54.4]} 15. Qb3 {[%clk
0:02:12.6]} 15... Nxe4 {[%clk 0:01:31]} 16. Bxb5 {[%clk 0:02:12.4]} 16... Nc5
{[%clk 0:01:13.3]} 17. Qc2 {[%clk 0:02:08.9]} 17... Qxd5 {[%clk 0:01:12.4]} 18.
Bc4 {[%clk 0:02:08.2]} 18... Nxc4 {[%clk 0:01:12.4]} 19. dxc4 {[%clk 0:02:08.9]}
19... Nd3+ {[%clk 0:01:11.9]} 20. Ke2 {[%clk 0:02:04.2]} 20... Qe4+ {[%clk
0:01:12.7]} 21. Be3 {[%clk 0:02:04.3]} 21... Nf4+ {[%clk 0:01:10.2]} 22. Kd2
{[%clk 0:02:05.2]} 22... Rd8+ {[%clk 0:01:10.7]} 23. Kc1 {[%clk 0:02:05.9]}
23... Nd3+ {[%clk 0:01:04.6]} 24. Kb1 {[%clk 0:02:04.8]} 24... Bf5 {[%clk
0:01:05]} 25. Nd2 {[%clk 0:01:36.7]} 25... Qxg2 {[%clk 0:01:05.3]} 26. Qd1
{[%clk 0:01:20]} 26... Nxf2+ {[%clk 0:01:02.7]} 0-1

[Event "*** Titled Tuesday 3|2 Blitz (Early)"]
[Site "Chess.com"]
[Date "2016.12.06"]
[Round "7"]
[White "biostatistician"]
[Black "Astaneh"]
[Result "1-0"]
[WhiteElo "2480"]
[BlackElo "2457"]
[TimeControl "180+2"]
[EndTime "12:29:32 PST"]
[Termination "biostatistician won on time"]

1. d4 {[%clk 0:03:02]} 1... Nf6 {[%clk 0:03:00.7]} 2. Nf3 {[%clk 0:03:03.9]}
2... g6 {[%clk 0:03:02.3]} 3. c4 {[%clk 0:03:03.7]} 3... Bg7 {[%clk 0:03:03.7]}
4. Nc3 {[%clk 0:03:05]} 4... d5 {[%clk 0:03:05.3]} 5. cxd5 {[%clk 0:03:05.4]}
5... Nxd5 {[%clk 0:03:07.2]} 6. e4 {[%clk 0:03:07.2]} 6... Nxc3 {[%clk
0:03:08.8]} 7. bxc3 {[%clk 0:03:08.7]} 7... c5 {[%clk 0:03:10.7]} 8. Be3 {[%clk
0:03:09.2]} 8... Qa5 {[%clk 0:03:11.4]} 9. Qd2 {[%clk 0:03:10]} 9... O-O {[%clk
0:03:12.1]} 10. Rc1 {[%clk 0:03:07.9]} 10... Bg4 {[%clk 0:03:09.4]} 11. Ng5
{[%clk 0:02:55.8]} 11... cxd4 {[%clk 0:03:07.9]} 12. cxd4 {[%clk 0:02:56.4]}
12... Qxd2+ {[%clk 0:03:09.8]} 13. Kxd2 {[%clk 0:02:57.8]} 13... Rd8 {[%clk
0:03:08.7]} 14. h3 {[%clk 0:02:50]} 14... Bd7 {[%clk 0:02:51.8]} 15. Rc7 {[%clk
0:02:37]} 15... Nc6 {[%clk 0:02:19.3]} 16. d5 {[%clk 0:02:34]} 16... Na5 {[%clk
0:02:11]} 17. Bd3 {[%clk 0:02:25.4]} 17... b6 {[%clk 0:01:53.3]} 18. f4 {[%clk
0:01:50.1]} 18... e5 {[%clk 0:01:42.1]} 19. dxe6 {[%clk 0:01:45.2]} 19... Bb5
{[%clk 0:00:58.3]} 20. exf7+ {[%clk 0:01:45.3]} 20... Kh8 {[%clk 0:00:59.6]} 21.
f8=Q+ {[%clk 0:01:43.2]} 21... Bxf8 {[%clk 0:01:01.2]} 22. Nf7+ {[%clk
0:01:42.3]} 22... Kg8 {[%clk 0:01:02.5]} 23. Nxd8 {[%clk 0:01:42.9]} 23... Rxd8
{[%clk 0:01:04.4]} 24. Rc3 {[%clk 0:01:42.4]} 24... Bb4 {[%clk 0:01:05]} 25. Ke2
{[%clk 0:01:38]} 25... Bd6 {[%clk 0:00:59.9]} 26. Bxb5 {[%clk 0:01:34.1]} 1-0

[Event "*** Titled Tuesday 3|2 Blitz (Early)"]
[Site "Chess.com"]
[Date "2016.12.06"]
[Round "7"]
[White "Apocalyps999"]
[Black "fireheart92"]
[Result "0-1"]
[WhiteElo "2375"]
[BlackElo "2551"]
[TimeControl "180+2"]
[EndTime "12:29:35 PST"]
[Termination "fireheart92 won by resignation"]

1. e4 {[%clk 0:03:02]} 1... e5 {[%clk 0:03:00.4]} 2. Nf3 {[%clk 0:03:02.6]} 2...
Nc6 {[%clk 0:03:01.5]} 3. Bc4 {[%clk 0:03:04.2]} 3... Nf6 {[%clk 0:03:01.8]} 4.
d3 {[%clk 0:03:04.7]} 4... Be7 {[%clk 0:03:03.1]} 5. O-O {[%clk 0:03:05.2]} 5...
O-O {[%clk 0:03:04.3]} 6. c3 {[%clk 0:03:06.3]} 6... d6 {[%clk 0:03:04.5]} 7.
Bb3 {[%clk 0:03:06.9]} 7... Kh8 {[%clk 0:03:05.6]} 8. Nbd2 {[%clk 0:03:07.9]}
8... Ng8 {[%clk 0:03:05.8]} 9. d4 {[%clk 0:03:06.3]} 9... exd4 {[%clk 0:03:06]}
10. cxd4 {[%clk 0:03:06.8]} 10... f5 {[%clk 0:03:05]} 11. e5 {[%clk 0:03:06]}
11... d5 {[%clk 0:03:06.4]} 12. Re1 {[%clk 0:02:59.2]} 12... Be6 {[%clk
0:03:07.1]} 13. Nf1 {[%clk 0:02:59.8]} 13... g5 {[%clk 0:03:07.6]} 14. h3 {[%clk
0:02:44.1]} 14... Nh6 {[%clk 0:03:04.1]} 15. Ng3 {[%clk 0:02:44.9]} 15... f4
{[%clk 0:02:54.5]} 16. Nh5 {[%clk 0:02:37.4]} 16... g4 {[%clk 0:02:54.7]} 17.
hxg4 {[%clk 0:02:37.7]} 17... Bxg4 {[%clk 0:02:55]} 18. Nxf4 {[%clk 0:02:33.4]}
18... Nf5 {[%clk 0:02:15.4]} 19. Bxd5 {[%clk 0:02:27.9]} 19... Ncxd4 {[%clk
0:02:14.5]} 20. Be4 {[%clk 0:02:20.1]} 20... Qe8 {[%clk 0:01:56.3]} 21. Qd3
{[%clk 0:01:57.3]} 21... Rd8 {[%clk 0:01:55]} 22. Nxd4 {[%clk 0:01:55.9]} 22...
Rxd4 {[%clk 0:01:56]} 23. Qc2 {[%clk 0:01:47.7]} 23... Bb4 {[%clk 0:01:49.8]}
24. Rf1 {[%clk 0:01:32.7]} 24... Qxe5 {[%clk 0:01:50.2]} 25. f3 {[%clk
0:01:31.4]} 25... Ng3 {[%clk 0:01:34.3]} 26. Be3 {[%clk 0:01:29.4]} 26... Nxf1
{[%clk 0:01:30.9]} 27. Rxf1 {[%clk 0:01:27.2]} 27... Rxf4 {[%clk 0:01:27.1]} 28.
Qf2 {[%clk 0:00:44.6]} 28... Rdxe4 {[%clk 0:01:23.2]} 29. Bxf4 {[%clk
0:00:39.1]} 29... Rxf4 {[%clk 0:01:24.3]} 30. Qh4 {[%clk 0:00:36.6]} 30... Bc5+
{[%clk 0:01:22.9]} 0-1

[Event "*** Titled Tuesday 3|2 Blitz (Early)"]
[Site "Chess.com"]
[Date "2016.12.06"]
[Round "7"]
[White "Peroncio"]
[Black "RitvarsReimanis"]
[Result "1-0"]
[WhiteElo "2516"]
[BlackElo "2403"]
[TimeControl "180+2"]
[EndTime "12:30:07 PST"]
[Termination "Peroncio won by resignation"]

1. d4 {[%clk 0:03:02]} 1... Nf6 {[%clk 0:03:00.1]} 2. Bg5 {[%clk 0:03:02.6]}
2... e6 {[%clk 0:02:56.5]} 3. e4 {[%clk 0:03:03.4]} 3... h6 {[%clk 0:02:56.2]}
4. Bxf6 {[%clk 0:03:04.5]} 4... Qxf6 {[%clk 0:02:58.1]} 5. c3 {[%clk 0:03:06.1]}
5... c5 {[%clk 0:02:55.8]} 6. Nf3 {[%clk 0:02:51.7]} 6... cxd4 {[%clk
0:02:55.2]} 7. cxd4 {[%clk 0:02:53.6]} 7... Nc6 {[%clk 0:02:52]} 8. Nc3 {[%clk
0:02:54.3]} 8... Bb4 {[%clk 0:02:47.4]} 9. Rc1 {[%clk 0:02:53.9]} 9... O-O
{[%clk 0:02:46.3]} 10. a3 {[%clk 0:02:48.6]} 10... Ba5 {[%clk 0:02:28.2]} 11. b4
{[%clk 0:02:44.9]} 11... Bb6 {[%clk 0:02:29]} 12. e5 {[%clk 0:02:46.4]} 12...
Qe7 {[%clk 0:02:21.8]} 13. Ne4 {[%clk 0:02:45.3]} 13... f5 {[%clk 0:01:54.9]}
14. Nd6 {[%clk 0:02:43.7]} 14... Qd8 {[%clk 0:01:19]} 15. Bc4 {[%clk 0:02:33.4]}
15... a6 {[%clk 0:01:16]} 16. d5 {[%clk 0:02:28.2]} 16... exd5 {[%clk
0:01:02.6]} 17. Bxd5+ {[%clk 0:02:27.1]} 17... Kh7 {[%clk 0:01:03.9]} 18. O-O
{[%clk 0:02:24.2]} 18... Bc7 {[%clk 0:01:04.4]} 19. Ba2 {[%clk 0:02:01.7]} 19...
Bxd6 {[%clk 0:00:51.1]} 20. exd6 {[%clk 0:02:03.6]} 20... b5 {[%clk 0:00:50]}
21. Qd3 {[%clk 0:01:50.3]} 21... Bb7 {[%clk 0:00:48]} 22. Rfe1 {[%clk
0:01:49.3]} 22... Qf6 {[%clk 0:00:45.5]} 23. Re3 {[%clk 0:01:42.1]} 23... a5
{[%clk 0:00:27.8]} 24. Qxb5 {[%clk 0:01:35.4]} 24... Ba6 {[%clk 0:00:26.1]} 25.
Qc5 {[%clk 0:01:28.7]} 25... axb4 {[%clk 0:00:27.4]} 26. axb4 {[%clk 0:01:30.6]}
26... Rfb8 {[%clk 0:00:28.3]} 27. Bb1 {[%clk 0:01:28.9]} 27... Rxb4 {[%clk
0:00:24.4]} 28. Bxf5+ {[%clk 0:01:25.5]} 28... Kh8 {[%clk 0:00:25.6]} 29. Bxd7
{[%clk 0:01:26.5]} 29... Qb2 {[%clk 0:00:13.3]} 30. Bxc6 {[%clk 0:01:25.6]}
30... Rd8 {[%clk 0:00:14.4]} 31. d7 {[%clk 0:01:25.5]} 31... Rb6 {[%clk
0:00:10.5]} 32. Re8+ {[%clk 0:01:23.4]} 1-0

[Event "*** Titled Tuesday 3|2 Blitz (Early)"]
[Site "Chess.com"]
[Date "2016.12.06"]
[Round "7"]
[White "Cecile_Haussernot"]
[Black "JohanSalomon"]
[Result "1-0"]
[WhiteElo "2277"]
[BlackElo "2375"]
[TimeControl "180+2"]
[EndTime "12:30:11 PST"]
[Termination "Cecile_Haussernot won by resignation"]

1. e4 {[%clk 0:03:02]} 1... c5 {[%clk 0:03:00.5]} 2. Nf3 {[%clk 0:03:00.4]} 2...
d6 {[%clk 0:03:02.1]} 3. d4 {[%clk 0:03:00.8]} 3... cxd4 {[%clk 0:03:04]} 4.
Nxd4 {[%clk 0:03:01.6]} 4... Nf6 {[%clk 0:03:05.7]} 5. Nc3 {[%clk 0:03:02.7]}
5... a6 {[%clk 0:03:06.4]} 6. h3 {[%clk 0:03:03.6]} 6... e6 {[%clk 0:03:05.8]}
7. g4 {[%clk 0:03:01.7]} 7... h6 {[%clk 0:03:07.1]} 8. Bg2 {[%clk 0:03:00.6]}
8... Be7 {[%clk 0:03:08.6]} 9. O-O {[%clk 0:03:01.5]} 9... Nc6 {[%clk
0:03:09.5]} 10. Be3 {[%clk 0:03:01.9]} 10... O-O {[%clk 0:03:09.8]} 11. Qe2
{[%clk 0:03:00.7]} 11... Nxd4 {[%clk 0:03:03.7]} 12. Bxd4 {[%clk 0:03:01.6]}
12... e5 {[%clk 0:03:05.4]} 13. Be3 {[%clk 0:03:02.5]} 13... Be6 {[%clk
0:03:03.6]} 14. f4 {[%clk 0:03:01]} 14... exf4 {[%clk 0:03:04.3]} 15. Bxf4
{[%clk 0:03:01.4]} 15... Nd7 {[%clk 0:03:04.1]} 16. Rad1 {[%clk 0:03:00.9]}
16... Qb6+ {[%clk 0:03:03.4]} 17. Qe3 {[%clk 0:02:54.8]} 17... Qxe3+ {[%clk
0:02:43.8]} 18. Bxe3 {[%clk 0:02:55.7]} 18... Rfb8 {[%clk 0:02:44.1]} 19. Bf4
{[%clk 0:02:40.4]} 19... Ne5 {[%clk 0:02:43.9]} 20. Nd5 {[%clk 0:02:41.1]} 20...
Bd8 {[%clk 0:02:34.4]} 21. Bxe5 {[%clk 0:02:34.3]} 21... dxe5 {[%clk 0:02:35.4]}
22. c4 {[%clk 0:02:36]} 22... Rc8 {[%clk 0:02:34.6]} 23. b3 {[%clk 0:02:36.3]}
23... b5 {[%clk 0:02:33.1]} 24. Rc1 {[%clk 0:02:28.9]} 24... Bg5 {[%clk
0:02:34.1]} 25. Rc2 {[%clk 0:02:27.4]} 25... Kh7 {[%clk 0:02:28]} 26. Kf2 {[%clk
0:02:24]} 26... Rab8 {[%clk 0:02:27.6]} 27. Kg3 {[%clk 0:02:24]} 27... Rc5
{[%clk 0:02:22.7]} 28. h4 {[%clk 0:02:22.1]} 28... Bd8 {[%clk 0:02:23.2]} 29.
Nb4 {[%clk 0:02:10.6]} 29... Ra8 {[%clk 0:02:12.9]} 30. Nd3 {[%clk 0:02:11.7]}
30... Rcc8 {[%clk 0:02:04.4]} 31. c5 {[%clk 0:02:11.9]} 31... a5 {[%clk
0:02:05.3]} 32. c6 {[%clk 0:02:11.1]} 32... Bb6 {[%clk 0:01:52.9]} 33. g5 {[%clk
0:02:05.6]} 33... Bd4 {[%clk 0:01:44.8]} 34. Bh3 {[%clk 0:02:04.9]} 34... Bxh3
{[%clk 0:01:43.8]} 35. Kxh3 {[%clk 0:02:06.1]} 35... hxg5 {[%clk 0:01:45.4]} 36.
Rxf7 {[%clk 0:02:04.9]} 36... Ra6 {[%clk 0:01:35.2]} 37. c7 {[%clk 0:01:45.7]}
37... Rh6 {[%clk 0:01:32]} 38. Kg4 {[%clk 0:01:33.7]} 38... gxh4 {[%clk
0:01:26.4]} 39. Rd7 {[%clk 0:01:31.3]} 39... h3 {[%clk 0:01:20.2]} 40. Rd8
{[%clk 0:01:27.4]} 40... Rxc7 {[%clk 0:01:21.3]} 41. Rxc7 {[%clk 0:01:27.9]}
41... h2 {[%clk 0:01:22.9]} 42. Rxd4 {[%clk 0:01:06.3]} 42... h1=Q {[%clk
0:01:18.9]} 43. Nxe5 {[%clk 0:01:07.4]} 43... Qg1+ {[%clk 0:01:14]} 44. Kf5
{[%clk 0:01:07.6]} 44... Qg4+ {[%clk 0:01:15.9]} 45. Nxg4 {[%clk 0:01:08.4]} 1-0

[Event "*** Titled Tuesday 3|2 Blitz (Early)"]
[Site "Chess.com"]
[Date "2016.12.06"]
[Round "7"]
[White "Sethu0025"]
[Black "Keranke"]
[Result "0-1"]
[WhiteElo "2608"]
[BlackElo "2623"]
[TimeControl "180+2"]
[EndTime "12:30:57 PST"]
[Termination "Keranke won by resignation"]

1. e4 {[%clk 0:03:02]} 1... c5 {[%clk 0:03:00.5]} 2. Nf3 {[%clk 0:03:02.6]} 2...
d6 {[%clk 0:03:01.7]} 3. d4 {[%clk 0:03:03.4]} 3... cxd4 {[%clk 0:03:02.7]} 4.
Nxd4 {[%clk 0:03:04.6]} 4... Nf6 {[%clk 0:03:04.2]} 5. Nc3 {[%clk 0:03:06.2]}
5... g6 {[%clk 0:03:05.5]} 6. Be3 {[%clk 0:03:05.9]} 6... Bg7 {[%clk 0:03:06.4]}
7. f3 {[%clk 0:03:07]} 7... O-O {[%clk 0:03:07.9]} 8. Qd2 {[%clk 0:03:07.8]}
8... Nc6 {[%clk 0:03:09.5]} 9. Bc4 {[%clk 0:03:08]} 9... Bd7 {[%clk 0:03:09.9]}
10. h4 {[%clk 0:03:08.4]} 10... h5 {[%clk 0:03:10.8]} 11. Bb3 {[%clk 0:03:08.7]}
11... Rc8 {[%clk 0:03:11.6]} 12. Nxc6 {[%clk 0:03:08]} 12... bxc6 {[%clk
0:03:04.7]} 13. O-O-O {[%clk 0:03:05]} 13... c5 {[%clk 0:03:02.9]} 14. Bc4
{[%clk 0:02:56.8]} 14... Rb8 {[%clk 0:03:01.5]} 15. g4 {[%clk 0:02:53.3]} 15...
Rb4 {[%clk 0:02:52.5]} 16. Qe2 {[%clk 0:02:49.2]} 16... Qa5 {[%clk 0:02:40]} 17.
Bd2 {[%clk 0:02:41]} 17... Rfb8 {[%clk 0:02:20.8]} 18. b3 {[%clk 0:02:03.4]}
18... hxg4 {[%clk 0:01:44.3]} 19. h5 {[%clk 0:01:25.7]} 19... Nxh5 {[%clk
0:01:44.4]} 20. Rdg1 {[%clk 0:01:05.6]} 20... gxf3 {[%clk 0:01:26.3]} 21. Qxf3
{[%clk 0:01:01.2]} 21... Rxc4 {[%clk 0:01:26.5]} 22. bxc4 {[%clk 0:00:27.3]}
22... Qa3+ {[%clk 0:01:24.8]} 23. Kd1 {[%clk 0:00:28.3]} 23... Nf6 {[%clk
0:01:05.1]} 24. Ke2 {[%clk 0:00:29.4]} 24... Rb2 {[%clk 0:00:53.4]} 25. Qd3
{[%clk 0:00:26]} 25... Ng4 {[%clk 0:00:38.5]} 26. Rb1 {[%clk 0:00:18.1]} 26...
Ne5 {[%clk 0:00:35.7]} 27. Qd5 {[%clk 0:00:19.1]} 27... Bc6 {[%clk 0:00:34.7]}
28. Rxb2 {[%clk 0:00:19.7]} 28... Qxb2 {[%clk 0:00:30]} 29. Rb1 {[%clk
0:00:20.3]} 29... Qxc2 {[%clk 0:00:24]} 30. Rb8+ {[%clk 0:00:20.2]} 30... Kh7
{[%clk 0:00:24.3]} 0-1